Cogmind - Beta 14 @@@ ROGUE MODE // 2024.09.11 @ 15:58:36 Player: Dull Result: Destroyed by S-10 Pest with Light Assault Rifle Performance ------------- Evolutions (0) 0 Regions Visited (2) 400 Robots Destroyed (30) 150 Value Destroyed (612) 612 Prototype IDs (0) 0 Alien Tech Used (0) 0 Bonus (0) 0 TOTAL SCORE: 1162 Bonus ------- None Cogmind --------- Core Integrity 0/250 Matter 81/300 Energy 125/125 System Corruption 3% Temperature Cool (19) Movement Core (550) Ox10 Location -10/Mines Parts ------- > --- POWER (1) -------- Light Ion Engine > --- PROPULSION (2) --- (None) > --- UTILITY (2) ------ Large Storage Unit Hardened Light Armor Plating > --- WEAPON (2) ------- Particle Gun Assault Rifle > --- INVENTORY (15) --- Improved Treads Improved Treads Improved Treads Wheel Improved Heat Sink Hardened Light Armor Plating Particle Gun Light Cannon Plasma Cutter Hammer Peak State ------------ > --- POWER ------------ Ion Engine > --- PROPULSION ------- Light Treads Improved Treads > --- UTILITY ---------- Large Storage Unit Hardened Light Armor Plating > --- WEAPON ----------- Particle Gun Assault Rifle > --- INVENTORY -------- Light Ion Engine Improved Treads Improved Treads Improved Treads Wheel Improved Heat Sink Seismic Detector Light Armor Plating Hardened Light Armor Plating Hardened Light Armor Plating Particle Gun Grenade Launcher Grenade Launcher Plasma Cutter Hammer [Rating: 12] Favorites ----------- Power Ion Engine Engine Ion Engine Propulsion Light Treads Treads Light Treads Leg Aluminum Leg Utility Large Storage Unit Device Seismic Detector Storage Large Storage Unit Protection Hardened Light Armor Plating Weapon Particle Gun Energy Gun Particle Gun Ballistic Gun Assault Rifle Launcher Grenade Launcher Build | -11 -10 -10 ------- Run | Yrd Mat Min Slots Evolved . | . . . Power . | . . . Propulsion . | . . . Utility . | . . . Weapon . | . . . Parts Attached 26 | 1 17 8 Power 3 | . 2 1 Engine 3 | . 2 1 Core . | . . . Reactor . | . . . Propulsion 6 | . 5 1 Treads 6 | . 5 1 Leg . | . . . Wheel . | . . . Hover . | . . . Flight . | . . . Utility 6 | 1 4 1 Device 1 | 1 . . Storage 2 | . 2 . Processor . | . . . Hackware . | . . . Protection 3 | . 2 1 Artifact . | . . . Weapon 11 | . 6 5 Energy Gun 4 | . 3 1 Energy Cannon . | . . . Ballistic Gun 3 | . 2 1 Ballistic Cannon . | . . . Launcher 4 | . 1 3 Special Weapon . | . . . Impact Weapon . | . . . Slashing Weapon . | . . . Piercing Weapon . | . . . Special Melee Weapon . | . . . Unidentified Prototypes . | . . . Corrupted Parts 1 | 1 . . System Corruption 1 | 1 . . Parts Lost 11 | . 4 7 Power 2 | . 1 1 Propulsion 3 | . 1 2 Utility 1 | . . 1 Weapon 5 | . 2 3 Highest Loss Streak 7 | . 2 7 To Critical Strikes . | . . . Average Slot Usage (%) 97 | . 98 93 Engine 13 | . 13 12 Treads 22 | . 22 24 Leg 3 | . 4 . Device 2 | . 2 . Storage 14 | . 14 14 Protection 11 | . 11 14 Energy Gun 15 | . 16 11 Ballistic Gun 10 | . 10 11 Launcher 1 | . . 2 Peak Build Rating 12 | 7 12 12 Average Rating 10 | 6 9 11 On Entrance 8 | 6 7 12 Naked Turns . | . . . Heaviest Build 35 | 14 35 35 Greatest Support 43 | 20 43 43 Greatest Overweight (x) 10 | . 3 10 Average Overweight (x) . | . . . Largest Inventory Capacity 15 | 8 15 15 Average Capacity 13 | 8 13 15 Most Carried 15 | 8 15 15 Average Carried 13 | 6 13 14 Final Capacity 15 | 8 15 15 Final Carried 15 | 7 15 10 Class Distribution -------------------- 100% | Mutant Dominant Class ---------------- Mutant | -10/Materials Mutant | -10/Mines Resources | -11 -10 -10 ----------- Run | Yrd Mat Min Matter Collected 488 | 206 249 33 Remotely . | . . . Salvage Created 827 | 84 721 22 Parts 57 | 5 50 2 Haulers Intercepted 2 | . 2 . Recyclers Shooed 1 | 1 . . Parts Field Recycled . | . . . Retrieved Matter . | . . . Parts Self-Destructed . | . . . Prevented . | . . . Kills | -11 -10 -10 ------- Run | Yrd Mat Min Combat Hostiles Destroyed 28 | . 17 11 Guns 16 | . 14 2 AOE 12 | . 3 9 Classes Destroyed 11 | 2 7 2 Worker 2 | . 1 1 Builder 1 | . 1 . Tunneler 2 | 1 1 . Hauler 2 | . 2 . Recycler 1 | 1 . . Operator 1 | . 1 . Watcher 2 | . 2 . Swarmer 7 | . 6 1 Grunt 11 | . 11 . Demolisher 1 | . . 1 Assembled 9 | . . 9 Best Kill Streak 12 | 2 5 12 Combat Bots Only 11 | . 5 11 Max Kills in Single Turn 3 | 1 2 3 Gunslinging . | . . . Exploded 3 | . 2 3 Melee . | . . . Uniques/NPCs Destroyed . | . . . Combat | -11 -10 -10 -------- Run | Yrd Mat Min Hostile Shots Fired 151 | . 84 67 Missed 46 | . 24 22 Damage Taken 1727 | 26 809 892 Core 258 | . 134 124 Absorbed by Shields . | . . . Core Remaining (%) 100 | 100 . . Volleys Fired 97 | 6 72 19 Largest 2 | 2 2 2 Hottest 105 | 60 105 85 Shots Fired 151 | 12 114 25 Gun 132 | 12 111 9 Cannon . | . . . Launcher 19 | . 3 16 Special . | . . . Kinetic 50 | 6 41 3 Thermal 39 | . 33 6 Explosive 19 | . 3 16 Electromagnetic 43 | 6 37 . Robot Hit Streak 9 | 4 9 7 Robot Miss Streak 3 | 2 3 2 Penetration Max . | . . . Secondary Targets 2 | . 2 . Max Gunslinging Chain 1 | . 1 . Shots Hit Robots 92 | 7 69 16 Core Hits 86 | 3 38 45 Critical Kills 1 | . 1 . Critical Parts Destroyed . | . . . Critical Strikes 2 | . 1 1 Burn 1 | . . 1 Destroy 1 | . 1 . Melee Attacks . | . . . Impact . | . . . Slashing . | . . . Piercing . | . . . Sneak Attacks . | . . . Combat Hostiles . | . . . Follow-up Attacks . | . . . Damage Inflicted 2049 | 99 1080 870 Guns 934 | 57 820 57 Cannons . | . . . Explosions 1114 | 42 259 813 Melee . | . . . Ramming 1 | . 1 . Kinetic 223 | 32 191 . Thermal 455 | 42 356 57 Explosive 997 | . 184 813 Electromagnetic 373 | 25 348 . Impact . | . . . Slashing . | . . . Piercing . | . . . Highest Corruption 3 | 1 3 3 Average Corruption 2 | 1 1 3 Corruption Purged . | . . . Corruption Blocked . | . . . Effects 21 | . 17 4 Message Errors 1 | . . 1 Matter Fused 5 | . 3 2 Heat Flow Errors 5 | . 5 . Energy Discharges 3 | . 2 1 Parts Fused 1 | . 1 . Data Loss (minor) 1 | . 1 . Data Loss (major) 1 | . 1 . Misfires 2 | . 2 . Alerts 1 | . 1 . Weapon Failures 1 | . 1 . Overload Shots . | . . . Overflow Damage 21 | . 15 6 Projectiles . | . . . Explosions 21 | . 15 6 Melee . | . . . Knockbacks . | . . . Impact . | . . . Kinetic . | . . . Secondary . | . . . Self-Inflicted Damage 262 | 26 115 121 Shots 12 | 1 5 6 Rammed 1 | . 1 . Targets Rammed 1 | . 1 . Kicked . | . . . Crushed . | . . . Highest Temperature 336 | 40 336 154 Average Temperature 102 | 18 114 57 Received Heat Transfer 400 | . 360 40 Effects 2 | . 2 . Interference 2 | . 2 . Siege Activations . | . . . Robots Corrupted . | . . . Combat Hostiles . | . . . Parts Fried . | . . . Impact Corruptions . | . . . Robots Melted . | . . . Combat Hostiles . | . . . Parts Melted . | . . . Heat Transferred 1029 | 50 757 222 Parts Sabotaged . | . . . Parts Stolen . | . . . Parts Stripped . | . . . Power Chain Reactions 3 | 1 2 . Alert | -11 -10 -10 ------- Run | Yrd Mat Min Peak Influence 248 | 10 248 83 Initial 52 | . 6 52 Average 104 | 6 117 54 Maximum Alert Level 1 | . 1 . Low Security (%) 89 | 100 87 100 Level 1 10 | . 12 . Level 2 . | . . . Level 3 . | . . . Level 4 . | . . . Level 5 . | . . . High Security . | . . . Max Security . | . . . Squads Dispatched 3 | . 3 . Investigation 2 | . 2 . Extermination . | . . . Reinforcement 1 | . 1 . Assault . | . . . Garrison . | . . . Intercept . | . . . Searches Triggered . | . . . Construction Impeded . | . . . Haulers Reinforced . | . . . Active Scanning Responses . | . . . Cargo Convoy Interrupts . | . . . Stealth | -11 -10 -10 --------- Run | Yrd Mat Min Distress Signals . | . . . Communications Jammed . | . . . Distress Signals . | . . . Times Spotted 50 | . 26 24 Peak Tracking Total 14 | . 6 14 Tactical Retreats 1 | . . 1 Traps | -11 -10 -10 ------- Run | Yrd Mat Min Traps Triggered 4 | . 4 . Indirectly . | . . . Trap Hack Attempts . | . . . Triggered . | . . . Disarmed . | . . . Reprogrammed . | . . . Reused . | . . . Traps Extracted . | . . . Installed . | . . . Triggered . | . . . Machines | -11 -10 -10 ---------- Run | Yrd Mat Min Machines Disabled 1 | . 1 . Max in Single Turn 1 | . 1 . Machines Repaired . | . . . Machines Dismantled . | . . . Machines Sabotaged . | . . . Overloaded Fab Kills . | . . . Hacking | -11 -10 -10 --------- Run | Yrd Mat Min Machines Accessed 7 | . 7 . Terminals 5 | . 5 . Fabricators . | . . . Repair Stations . | . . . Recycling Units 2 | . 2 . Scanalyzers . | . . . Garrison Access . | . . . Total Hacks 11 | . 11 . Successful 9 | . 9 . Failed 2 | . 2 . Catastrophic 1 | . 1 . Database Lockouts . | . . . Manual 9 | . 9 . Terminals 9 | . 9 . Fabricators . | . . . Repair Stations . | . . . Recycling Units 2 | . 2 . Scanalyzers . | . . . Garrison Access . | . . . Terminal Hacks 1 | . 1 . Branch Access Points 1 | . 1 . Fabricator Hacks . | . . . Repair Station Hacks . | . . . Recycling Unit Hacks 1 | . 1 . Retrieve Components 1 | . 1 . Scanalyzer . | . . . Garrison Access Hacks . | . . . Unauthorized Hacks 6 | . 6 . Terminals 5 | . 5 . Assimilate 1 | . 1 . Botnet 4 | . 4 . Fabricators . | . . . Repair Stations . | . . . Recycling Units 1 | . 1 . Mask 1 | . 1 . Scanalyzers . | . . . Garrison Access . | . . . Data Cores Recovered . | . . . Used . | . . . Hacking Detections 2 | . 2 . Full Trace Events 1 | . 1 . Feedback Events . | . . . Feedback Blocked . | . . . Robot Schematics Acquired . | . . . Robots Built . | . . . Authchips . | . . . Time . | . . . Total Robot Build Rating . | . . . Part Schematics Acquired . | . . . Parts Built . | . . . Authchips . | . . . Time . | . . . Total Part Build Rating . | . . . Parts Repaired . | . . . Time . | . . . Parts Recycled . | . . . Recycled Matter . | . . . Retrieved Matter . | . . . Retrieved Components 1 | . 1 . Parts Scanalyzed . | . . . Part Schematics Acquired . | . . . Parts Damaged . | . . . Bothacking | -11 -10 -10 ------------ Run | Yrd Mat Min Used RIF Installer . | . . . Robots Hacked . | . . . Non-combat . | . . . Combat . | . . . Robot Hacks Applied . | . . . Relay Couplers Released . | . . . Fabnet Peak Effective % . | . . . Robots Rewired . | . . . Allies Hacked . | . . . Hacks Repelled . | . . . Allies | -11 -10 -10 -------- Run | Yrd Mat Min Total Allies . | . . . Largest Group . | . . . Highest-Rated Group . | . . . Highest-Rated Ally . | . . . Total Orders . | . . . Ally Attacks . | . . . Total Damage . | . . . Kills . | . . . Allies Corrupted . | . . . Allies Melted . | . . . Intel | -11 -10 -10 ------- Run | Yrd Mat Min Robot Analysis Total . | . . . Derelict Logs Recovered 3 | . . 3 Drone Launches . | . . . Drone Recoveries . | . . . Exploration | -11 -10 -10 ------------- Run | Yrd Mat Min Turns Passed 1509 | 37 1217 255 Spaces Moved 743 | 15 607 121 Core 2 | . . 2 Treads 634 | . 515 119 Legs 107 | 15 92 . Wheels . | . . . Hover . | . . . Flight . | . . . Fastest Speed 120 | 120 120 160 Average Speed 158 | 120 157 166 Slowest Speed 550 | 120 330 550 Overloaded Moves . | . . . Propulsion Burnouts . | . . . Robots Hopped . | . . . Cave-ins Triggered . | . . . Exploration Rate (%) 41 | 2 98 23 Regions Visited 2 Branch Regions 1 Pre-discovered Areas 2 | . . 2 Known Exits Taken 1 | . 1 . Unknown Exits Taken 1 | 1 . . Scrap Searched 1 | . . 1 Spaces Dug . | . . . Terrain Destroyed 102 | 4 34 64 Melee . | . . . Projectile . | . . . AOE 102 | 4 34 64 Terrain Rammed . | . . . Walls Destroyed . | . . . Machines Disabled . | . . . Actions | -11 -10 -10 --------- Run | Yrd Mat Min Total 944 | 23 768 153 Wait 33 | . 33 . Move 741 | 14 606 121 Hop . | . . . Pick Up 27 | 2 23 2 Fast Attach . | . . . Attach 10 | 1 4 5 Detach . | . . . Swap 16 | . 13 3 Drop 19 | . 16 3 Fire 97 | 6 72 19 Melee . | . . . Ram . | . . . Kick . | . . . Crush 1 | . 1 . Escape Stasis . | . . . Rewire . | . . . Trap . | . . . Miscellaneous . | . . . Route ------- -11/Scrapyard -10/Materials (discovered 4 exits: [*Mat x3] / *Min) -10/Mines History --------- Turn | Location | Event 1 | -11/Scrapyard | Discovered new exit (range 3) 38 | -11/Scrapyard | Entered Materials 295 | -10/Materials | Discovered new exit (range 15) 312 | -10/Materials | Build established: Mutant 719 | -10/Materials | Discovered new exit (range 16) 777 | -10/Materials | Identified exit to Mines 1052 | -10/Materials | Discovered new exit (range 13) 1103 | -10/Materials | Core integrity fell below 50% 1255 | -10/Materials | Entered Mines 1256 | -10/Mines | Learned location of Storage (-7) 1260 | -10/Mines | Learned Materials security intel 1369 | -10/Mines | Learned location of Zion (-7) 1393 | -10/Mines | Found DCF Scrap (12 items) 1442 | -10/Mines | Assembled infested the area 1463 | -10/Mines | Core integrity fell below 20% 1510 | -10/Mines | Destroyed by S-10 Pest with Light Assault Rifle Last Messages --------------- 01486_ D-53 Grenadier suffers critical hit (Burn). 01486_ D-53 Grenadier destroyed. 01489_ K-01 Serf collects debris. 01490_ The unstable cave ceiling collapses. 01491_ K-01 Serf destroyed. 01491_ U-05 Engineer lays Concrete. 01491_ R-06 Scavenger collects Lgt. Ion Engine. 01492_ U-05 Engineer builds a Wall. 01493_ The unstable cave ceiling collapses. 01493_ Com. Wheel crushed. 01493_ The unstable cave ceiling collapses. 01494_ Lgt. Treads destroyed. 01495_ The unstable cave ceiling collapses. 01496_ U-05 Engineer builds a Wall. 01498_ S-10 Pest destroyed. 01498_ R-06 Scavenger collects Lgt. Treads. 01499_ The unstable cave ceiling collapses. 01500_ U-05 Engineer lays Concrete. 01503_ R-06 Scavenger collects Lgt. Ion Engine. 01504_ The unstable cave ceiling collapses. Map ----- +----------------------------------------------------+ | ?????????????????????????????????????? | | ?????????????????????????????????????? | | ?????????????????????????????????????? | | ?????????????????????????????????????? | | ?????????????????????????????????????? | | ?????????????????????????????????????? | | ?????????????????????????????????????? | | ?????????????????????????????????????? | | ?????????????????????????????????????? | | ????????????????? ???????????????????? | | ?????? ?????????? ##????????????????? | | ?????? ????????# ??????????????? | | ?????? ???????# ##????????????? | | ??????? ??##?? # ????????????? | | ???????#%### ## #????????????? | | ??????##[% # ##????????????? | | ??????# =% # #????????????? | | ??????# % # #????????????? | | ??????## #s ##???????????? | | ??????# # #???????????? | | ???????# # #???????????? | | ???????# # #????????????? | | ???????# %### #??????????????? | | ????????## # ## #???????????????? | | ????????# ## # ##???????????????? | | ????????# # @ # ##????????????????? | | ????????## # ####?????????????? | | ?????????## #?????????????? | | ??????????### # #?????????????? | | ????????????# # #?????????????? | | ????????????# """ #?????????????? | | ????????????### """ #?????????????? | | ??????????????# """ #?????????????? | | ??????????????# #?????????????? | | ??????????????# #?????????????? | | ??????????????###### ##?????????????? | | ?????????########### #??????????????? | | ?????????# #??????????????? | | ?????????# ######### #??????????????? | | ?????????# #???????#* #??????????????? | | ?????????# #???????# ###????????????? | | ?????????# #???????#!|!=#????????????? | | ?????????# #???????#%[ =#????????????? | | ?????????# #???????###!!#????????????? | | ?????????# #?????????# #????????????? | | ?????????# #?????????# #????????????? | | ?????????# #?????????# #????????????? | | ????###### #?????????# #????????????? | | ????# #?????????# #????????????? | | ????# ######?????????# #????????????? | +----------------------------------------------------+ Best States ------------- Heat Dissipation 25 Energy Generation 10 Energy Capacity 250 Matter Stores 300 Matter Capacity 300 Sight Range 16 Terrain Scan Density 10 Armor Coverage 150 Evasion (%) 55 Recoil Reduction 2 Item Schematics ----------------- None Robot Schematics ------------------ None Fabricated ------------ Nothing Alien Tech Used ----------------- None Achievements -------------- None Challenges ------------ None Game ------ Seed WarlordQuantumSpiker Manual? 0 Play Time 00:15:47 Cumulative 52.5 hours Start 2024.09.11 @ 15:45:50 End 2024.09.11 @ 15:58:36 Sessions 1 Manual Loads 0 Difficulty Rogue Special Mode None Game No. 75 Rogue 75 Adventurer 0 Explorer 0 Win Type - Total 0 Types 0/0/0/0/0/0/0/0/0 Lore% 13 Gallery% 46 Achievement% 36 Wizard Run 0 Options --------- Layout 0 ASCII 0 Keyboard 0 Movement Mouse Keybinds 1 Fullscreen 1 Font 18/TerminusBold Map View 76x50 Zoom Use 0% Tactical HUD 1 Map Filters NONE Filters NONE Steam 1 RUN: 06abb899-c8b3-4da2-92ef-be4a23272d8d